bitfinex/quotes_SOLUSD_20251130
["timestamp","ask_amount","ask_price","bid_price","bid_amount"]
[1764473938858,0.68,136.06,136.02,9.44451036]
[1764473939061,0.68,136.06,136.02,10.16451036]
[1764473939861,0.68,136.06,136.03,0.72]
[1764473940461,0.68,136.06,136.02,10.16451036]
[1764473941660,0.68,136.06,136.03,2.81285667]
[1764473942344,0.68,136.06,136.04,2.09285667]
[1764473945465,0.68,136.06,136.03,2.81285667]
[1764473951150,0.68,136.06,136.03,10.16414563]
[1764473953472,0.68,136.06,136.03,2.81285667]
[1764473962185,0.68,136.06,136.03,10.16407547]
[1764473967194,0.68,136.06,136.03,8.0712188]
[1764473967488,0.68,136.06,136.03,10.16407547]
[1764473981889,0.68,136.06,136.03,8.0712188]
[1764473983494,0.68,136.06,136.03,10.16407547]
[1764473984293,0.68,136.06,136.03,8.0712188]
[1764473987101,0.72,136.08,136.04,2.74285667]
[1764473987604,0.72,136.08,136.05,0.65]
[1764473987794,0.72,136.08,136.04,2.74285667]
[1764473988299,0.72,136.08,136.05,7.35023888]
[1764473989804,3.27027329,136.07,136.02,3.92027329]
[1764473989992,3.27027329,136.07,136.02,0.65]
[1764473990189,0.72,136.06,136.02,8.00168714]
[1764473990595,0.72,136.06,136.03,0.65]
[1764473991601,0.72,136.06,136.03,8.00129959]
[1764473996206,0.72,136.06,136.03,7.35129959]
[1764473996500,0.72,136.06,136.03,8.05129959]
[1764473996699,0.72,136.06,136.03,7.35129959]
[1764473999804,0.72,136.06,136.03,8.05129959]
[1764474001597,19.548864,136.09,136.05,3.27027329]
[1764474001598,17.008864,136.09,136.05,3.27027329]
[1764474001797,8.23316523,136.14,136.07,3.27027329]
[1764474001798,0.7,136.11,136.07,3.27027329]
[1764474002195,0.7,136.11,136.07,3.97027329]
[1764474002792,0.7,136.11,136.07,11.31924668]
[1764474003997,3.94,136.11,136.07,11.31924668]
[1764474004506,0.7,136.1,136.07,11.31924668]
[1764474007613,0.7,136.1,136.08,0.7]
[1764474008435,0.7,136.1,136.08,3.97027329]
[1764474008737,16.308864,136.12,136.09,3.27027329]
[1764474008902,3.92,136.13,136.11,3.27027329]
[1764474010536,0.7,136.16,136.12,3.97027329]
[1764474010736,0.7,136.16,136.13,3.27027329]
[1764474010899,0.7,136.16,136.13,3.97027329]
[1764474011331,0.7,136.16,136.13,3.27027329]
[1764474012007,3.92,136.17,136.14,0.7]
[1764474012405,0.7,136.16,136.13,10.61604072]
[1764474012706,0.7,136.16,136.13,11.31604072]
[1764474013710,0.7,136.16,136.13,3.97027329]
[1764474016235,0.7,136.16,136.14,3.27027329]
[1764474016538,0.7,136.17,136.14,3.97027329]
[1764474017302,0.7,136.17,136.14,3.27027329]
[1764474017521,8.04400069,136.17,136.13,3.27027329]
[1764474017728,11.31427398,136.17,136.13,0.7]
[1764474018030,0.7,136.16,136.13,0.7]
[1764474018629,0.7,136.16,136.12,10.61664369]
[1764474018807,8.04439528,136.16,136.12,11.31664369]
[1764474019003,8.04439528,136.16,136.12,10.61664369]
[1764474019315,0.7,136.15,136.13,3.27027329]
[1764474021338,0.7,136.15,136.12,11.31664369]
[1764474022513,24.36210032,136.18,136.14,3.27027329]
[1764474022935,0.71,136.17,136.14,11.32527066]
[1764474023245,0.71,136.17,136.14,7.34499737]
[1764474027509,0.71,136.17,136.14,8.00499737]
[1764474028551,0.71,136.17,136.14,11.27527066]
[1764474028946,0.71,136.17,136.14,8.00499737]
[1764474029143,8.05376483,136.17,136.14,0.66]
[1764474029555,0.69,136.16,136.14,0.66]
[1764474034146,0.69,136.16,136.14,0.66]
[1764474034347,0.69,136.16,136.13,10.61599232]
[1764474034554,0.69,136.16,136.13,11.27599232]
[1764474035555,0.69,136.16,136.14,0.66]
[1764474036527,0.69,136.16,136.13,10.61599232]
[1764474036728,0.69,136.16,136.13,11.27599232]
[1764474037953,0.69,136.16,136.14,0.66]
[1764474038454,0.69,136.16,136.11,10.56692961]
[1764474038631,16.998864,136.18,136.14,3.93027329]
[1764474038831,16.308864,136.18,136.15,3.27027329]
[1764474039161,16.998864,136.18,136.15,3.93027329]
[1764474039352,16.998864,136.18,136.15,0.66]
[1764474040748,0.69,136.17,136.14,7.34512982]
[1764474040954,0.69,136.17,136.14,8.00512982]
[1764474041936,8.03268301,136.19,136.15,3.93027329]
[1764474042135,8.03268301,136.19,136.14,7.34512982]
[1764474042136,8.03268301,136.19,136.16,3.93027329]
[1764474042629,0.69,136.18,136.16,3.93027329]
[1764474042833,8.03268301,136.19,136.16,3.93027329]
[1764474043043,0.69,136.18,136.16,3.93027329]
[1764474044337,0.69,136.19,136.16,3.93027329]
[1764474044667,0.69,136.18,136.16,3.93027329]
[1764474047149,8.03272104,136.19,136.16,3.93027329]
[1764474048169,0.69,136.18,136.16,3.93027329]
[1764474048668,0.69,136.18,136.16,2.74951751]
[1764474048971,10.6621439,136.2,136.17,0.66]
[1764474049347,11.3521439,136.2,136.17,0.66]
[1764474050267,0.69,136.19,136.17,0.66]
[1764474053172,0.79,136.2,136.17,2.74951751]
[1764474053862,8.13214658,136.2,136.17,0.66]
[1764474054874,0.69,136.19,136.17,0.66]
[1764474055176,0.69,136.19,136.16,2.79951751]
[1764474055562,0.69,136.19,136.16,10.14369549]
[1764474058575,8.03274472,136.19,136.15,7.34484024]
[1764474058772,8.03274472,136.19,136.15,0.71]
[1764474058976,0.66,136.18,136.15,2.79951751]
[1764474060764,0.66,136.18,136.15,10.14393]
[1764474064961,0.66,136.18,136.16,9.43377009]
[1764474065565,0.66,136.18,136.16,7.34425258]
[1764474066980,0.66,136.18,136.15,9.43430027]
[1764474067185,0.66,136.18,136.15,7.34478276]
[1764474068365,0.66,136.18,136.15,8.05478276]
[1764474069890,0.66,136.18,136.15,10.14430027]
[1764474072279,3.32,136.2,136.16,2.08951751]
[1764474072488,0.76,136.2,136.17,2.08951751]
[1764474072786,0.76,136.2,136.17,2.79951751]
[1764474072964,0.76,136.2,136.18,0.71]
[1764474073389,0.76,136.2,136.17,0.71]
[1764474074182,0.76,136.2,136.17,8.05352302]
[1764474078990,2.84951751,136.2,136.16,7.34420032]
[1764474079192,2.08951751,136.19,136.16,8.05420032]
[1764474079376,2.74951751,136.19,136.16,8.05420032]
[1764474079576,0.66,136.19,136.16,8.05420032]
[1764474081294,2.74951751,136.19,136.16,7.34420032]
[1764474081680,0.68,136.18,136.16,7.34420032]
[1764474089105,0.68,136.18,136.15,7.34465202]
[1764474089999,0.68,136.18,136.15,8.04465202]
[1764474090207,2.76951751,136.18,136.15,0.7]
[1764474090505,2.76951751,136.18,136.14,7.34537489]
[1764474090709,0.71,136.17,136.14,8.04537489]
[1764474090877,0.71,136.17,136.15,0.7]
[1764474091081,2.79951751,136.17,136.14,7.34537489]
[1764474091290,0.71,136.17,136.14,0.7]
[1764474091504,0.71,136.16,136.13,32.82742248]
[1764474091692,0.71,136.17,136.14,0.7]
[1764474092191,0.71,136.17,136.13,32.82742248]
[1764474092592,8.05385421,136.17,136.13,11.26578029]
[1764474092986,21.77603158,136.2,136.14,0.7]
[1764474093183,21.77603158,136.2,136.17,0.28432314]
[1764474093184,0.1,136.2,136.17,0.28432314]
[1764474093406,0.1,136.2,136.19,10.89946243]
[1764474093798,0.1,136.2,136.19,14.54074703]
[1764474093984,0.1,136.2,136.19,12.45122952]
[1764474094192,0.1,136.2,136.19,12.73555266]
[1764474094399,0.1,136.2,136.19,22.16775318]
[1764474095710,0.1,136.2,136.19,38.47661718]
[1764474098781,0.1,136.2,136.19,38.33445561]
[1764474099386,0.1,136.2,136.19,38.47661718]
[1764474108618,0.1,136.2,136.19,39.64961508]
[1764474110000,0.1,136.2,136.19,19.09391253]
[1764474110219,0.81,136.2,136.19,19.09391253]
[1764474110597,0.81,136.2,136.18,10.56303021]
[1764474110921,0.81,136.2,136.18,13.82554562]
[1764474112518,0.81,136.2,136.18,10.56303021]
[1764474115328,0.81,136.2,136.18,3.22]
[1764474116611,0.81,136.2,136.17,7.3436342]
[1764474118528,4.07251541,136.2,136.17,7.3436342]
[1764474119027,0.7,136.19,136.17,7.3436342]
[1764474121619,0.1,136.2,136.18,0.7]
[1764474122828,0.8,136.2,136.18,0.7]
[1764474123024,0.8,136.2,136.17,15.38530495]
[1764474123330,0.8,136.2,136.17,18.64782036]
[1764474126335,0.1,136.2,136.19,16.15262793]
[1764474126534,0.1,136.2,136.19,19.41514334]
[1764474126734,0.1,136.2,136.19,27.55525782]
[1764474128524,0.1,136.2,136.19,27.83958096]
[1764474133940,0.1,136.2,136.19,23.87706555]
[1764474134141,0.1,136.2,136.19,16.43695107]
[1764474134326,0.1,136.2,136.19,23.78198189]
[1764474134642,0.1,136.2,136.19,23.06198189]
[1764474134819,0.1,136.2,136.19,19.69946648]
[1764474136038,0.1,136.2,136.19,20.41946648]
[1764474136742,0.1,136.2,136.19,23.36053482]
[1764474138055,0.1,136.2,136.19,20.09801941]
[1764474138257,0.1,136.2,136.19,23.36053482]
[1764474140624,0.1,136.2,136.19,22.64053482]
[1764474141722,0.1,136.2,136.19,23.36053482]
[1764474143673,0.1,136.2,136.19,22.64053482]
[1764474143824,0.1,136.2,136.19,22.35621168]
[1764474144141,0.78,136.2,136.19,16.15262793]
[1764474144941,0.1,136.2,136.19,20.41946648]
[1764474145327,0.1,136.2,136.19,23.36053482]
[1764474148840,0.1,136.2,136.19,22.64053482]
[1764474149054,0.1,136.2,136.19,19.69946648]
[1764474149757,0.1,136.2,136.19,22.64053482]
[1764474151568,0.1,136.2,136.19,19.37801941]
[1764474152065,0.1,136.2,136.19,22.64053482]
[1764474152449,0.1,136.2,136.19,19.37801941]
[1764474153060,0.76,136.2,136.19,19.37801941]
[1764474153360,0.76,136.2,136.18,3.22]
[1764474153851,0.76,136.2,136.18,10.56318542]
[1764474158162,0.76,136.2,136.18,3.22]
[1764474159267,0.76,136.2,136.17,16.1535927]
[1764474159467,0.76,136.2,136.17,7.34364778]
[1764474160369,0.76,136.2,136.17,16.1535927]
[1764474162076,0.76,136.2,136.17,19.41610811]
[1764474168676,0.1,136.2,136.18,11.25563001]
[1764474169479,0.76,136.2,136.18,11.25563001]
[1764474170554,0.76,136.2,136.18,10.08182628]
[1764474171977,0.76,136.2,136.18,9.43182628]
[1764474173380,0.76,136.2,136.16,5.30871168]
[1764474173571,0.1,136.2,136.19,10.8986566]
[1764474173756,0.1,136.2,136.19,11.18297974]
[1764474174074,0.1,136.2,136.19,11.83297974]
[1764474174271,0.1,136.2,136.19,14.77404808]
[1764474175061,0.1,136.2,136.19,22.11673109]
[1764474182894,0.1,136.23,136.2,0.28432314]
[1764474183102,0.1,136.23,136.22,27.49184374]
[1764474183270,0.1,136.23,136.22,42.04459484]
[1764474183471,0.1,136.23,136.22,41.72691445]
[1764474184182,0.1,136.23,136.22,49.06798037]
[1764474184375,0.1,136.23,136.22,51.15669205]
[1764474185176,0.1,136.23,136.22,44.95878767]
[1764474185378,0.1,136.23,136.22,42.87007599]
[1764474185591,0.1,136.23,136.22,49.06798037]
[1764474186199,0.1,136.23,136.22,42.87007599]
[1764474187377,0.1,136.23,136.22,46.09007599]
[1764474187878,0.1,136.23,136.22,43.30136431]
[1764474188084,0.1,136.23,136.22,45.39007599]
[1764474188581,0.77,136.23,136.22,45.39007599]
[1764474188777,0.1,136.23,136.22,45.39007599]
[1764474189197,0.77,136.23,136.22,45.39007599]
[1764474192093,0.1,136.23,136.22,45.39007599]
[1764474193100,0.77,136.23,136.22,45.10575285]
[1764474194006,0.1,136.23,136.22,46.09007599]
[1764474197488,0.1,136.23,136.22,44.00136431]
[1764474197690,0.1,136.23,136.22,46.09007599]
[1764474199111,0.1,136.24,136.23,0.28432314]
[1764474199398,0.1,136.24,136.23,10.41356186]
[1764474199807,0.1,136.24,136.23,13.35376546]
[1764474200189,0.1,136.24,136.23,22.16371038]
[1764474201705,1e-08,136.24,136.23,22.16371038]
[1764474202185,1e-08,136.24,136.23,84.96371038]
[1764474202386,1e-08,136.24,136.23,91.16161476]
[1764474202917,0.1,136.34,136.23,146.21556762]
[1764474203107,0.7,136.31,136.29,2.08871168]
[1764474203686,0.7,136.31,136.28,30.71184374]
[1764474204811,0.7,136.31,136.3,7.33675715]
[1764474207689,0.7,136.31,136.29,16.76015533]
[1764474209309,0.7,136.31,136.29,9.42600715]
[1764474210214,0.7,136.31,136.29,16.76015533]
[1764474211235,0.7,136.31,136.29,14.67144365]
[1764474211410,0.7,136.31,136.29,16.76015533]
[1764474212410,0.7,136.31,136.29,7.33729547]
[1764474212909,0.7,136.31,136.29,9.42600715]
[1764474213300,0.7,136.31,136.3,2.08871168]
[1764474214519,0.71,136.31,136.3,2.08871168]
[1764474214701,0.71,136.31,136.3,9.42546883]
[1764474214897,0.71,136.33,136.31,8.80994492]
[1764474215106,0.71,136.33,136.32,2.08871168]
[1764474216509,0.71,136.33,136.31,8.80994492]
[1764474216817,0.71,136.33,136.32,9.42439243]
[1764474217816,0.71,136.33,136.32,7.33568075]
[1764474217995,0.71,136.33,136.32,9.42439243]
[1764474218691,0.71,136.33,136.32,18.23433735]
[1764474218896,0.1,136.34,136.32,21.45433735]
[1764474219112,0.81,136.34,136.33,2.08871168]
[1764474219416,0.1,136.34,136.33,2.08871168]
[1764474219720,0.1,136.34,136.33,10.8986566]
[1764474220303,0.1,136.34,136.33,13.83691641]
[1764474220904,0.1,136.34,136.33,21.17205907]
[1764474221906,0.1,136.34,136.33,18.23379926]
[1764474222107,0.81,136.34,136.33,7.33514266]
[1764474225630,0.81,136.34,136.33,2.08871168]
[1764474226721,0.1,136.34,136.33,2.08871168]
[1764474227229,0.1,136.34,136.33,2.77871168]
[1764474227427,0.1,136.34,136.33,10.11385434]
[1764474227622,0.1,136.34,136.33,9.42385434]
[1764474227927,0.1,136.34,136.33,22.4281224]
[1764474228220,0.1,136.34,136.33,29.8607591]
[1764474228605,0.1,136.38,136.37,8.80994492]
[1764474228808,0.1,136.38,136.37,14.1186566]
[1764474229203,0.1,136.38,136.37,22.42310042]
[1764474229620,0.1,136.38,136.37,29.75609154]
[1764474230213,0.1,136.38,136.37,27.66737986]
[1764474230414,0.1,136.38,136.37,29.75609154]
[1764474232004,3.22,136.46,136.37,29.75609154]
[1764474232005,0.71,136.58,136.41,16.308864]
[1764474232208,0.71,136.58,136.4,16.308864]
[1764474232209,0.71,136.57,136.51,0.14216157]
[1764474232428,0.71,136.57,136.56,2.08871168]
[1764474232602,0.71,136.62,136.57,0.28432314]
[1764474232806,0.71,136.62,136.59,3.24447505]
[1764474233135,0.71,136.62,136.61,3.24447505]
[1764474233333,0.71,136.62,136.59,0.28432314]
[1764474233626,17.018864,136.65,136.61,12.05441997]
[1764474233827,17.018864,136.65,136.62,3.24447505]
[1764474234130,0.71,136.64,136.62,3.24447505]
[1764474234426,0.71,136.64,136.61,3.24447505]
[1764474234626,0.71,136.64,136.62,3.24447505]
[1764474236004,0.71,136.64,136.59,9.09426806]
[1764474236204,8.02870068,136.64,136.6,3.24447505]
[1764474236526,3.24447505,136.63,136.57,8.80994492]
[1764474236832,0.71,136.63,136.59,3.24447505]
[1764474237035,0.71,136.62,136.6,3.24447505]
[1764474237231,0.71,136.62,136.61,3.24447505]
[1764474237910,0.71,136.62,136.6,3.24447505]
[1764474238832,0.71,136.62,136.6,12.33874311]
[1764474240320,0.71,136.62,136.6,16.41486052]
[1764474240517,0.71,136.62,136.6,7.32059246]
[1764474242236,0.71,136.62,136.6,10.56506751]
[1764474242913,0.71,136.62,136.6,8.80994492]
[1764474243115,0.71,136.62,136.6,25.11880892]
[1764474243635,0.71,136.62,136.59,7.32118017]
[1764474243819,3.95447505,136.62,136.58,7.32164154]
[1764474244015,0.71,136.62,136.58,10.56611659]
[1764474244220,0.71,136.61,136.58,10.56611659]
[1764474244920,7.31853642,136.64,136.59,8.80994492]
[1764474245132,8.02853642,136.64,136.6,3.24447505]
[1764474245329,0.71,136.63,136.6,3.24447505]
[1764474246329,0.71,136.63,136.59,10.56531631]
[1764474246724,0.71,136.63,136.59,7.32084126]
[1764474246930,11.27355808,136.63,136.59,7.32084126]
[1764474247355,3.95447505,136.62,136.57,7.32187385]
[1764474247521,0.71,136.62,136.57,10.5663489]
[1764474247823,0.71,136.61,136.57,10.5663489]
[1764474248026,0.71,136.61,136.56,25.62862027]
[1764474248245,0.71,136.61,136.57,3.24447505]
[1764474248642,0.71,136.61,136.56,28.87309532]
[1764474248928,0.71,136.61,136.57,3.24447505]
[1764474249125,8.03046221,136.61,136.56,10.56726356]
[1764474249329,0.71,136.61,136.58,3.24447505]
[1764474249529,0.71,136.6,136.57,12.05441997]
[1764474250131,0.71,136.6,136.56,10.56726356]
[1764474250329,0.71,136.6,136.55,24.10436489]
[1764474250649,0.71,136.6,136.55,15.29441997]
[1764474250844,0.71,136.6,136.55,19.37318407]
[1764474251040,0.71,136.6,136.55,22.61765912]
[1764474251438,8.0306784,136.6,136.55,19.37318407]
[1764474251639,8.0306784,136.6,136.55,3.24]
[1764474251640,11.27515345,136.6,136.55,3.24]
[1764474251835,11.27515345,136.6,136.55,6.48447505]
[1764474251836,0.71,136.59,136.55,6.48447505]
[1764474252032,0.71,136.59,136.55,3.24]
[1764474252237,0.71,136.59,136.55,6.48447505]
[1764474252435,0.71,136.59,136.54,7.32379276]
[1764474252436,0.71,136.59,136.56,3.24447505]
[1764474252853,16.308864,136.63,136.56,0.28432314]
[1764474253155,0.71,136.62,136.56,12.33874311]
[1764474253323,3.24447505,136.61,136.56,9.09426806]
[1764474253522,3.95447505,136.6,136.56,9.09426806]
[1764474253963,0.71,136.59,136.56,8.80994492]
[1764474254255,0.71,136.59,136.56,16.13267865]
[1764474255651,0.71,136.59,136.56,19.3771537]
[1764474255943,3.24447505,136.61,136.57,0.14216157]
[1764474256145,0.71,136.61,136.57,0.14216157]
[1764474256346,3.24447505,136.62,136.58,7.32171621]
[1764474256553,0.71,136.6,136.57,7.3221564]
[1764474257049,0.71,136.6,136.56,16.13273143]
[1764474257835,0.71,136.6,136.56,7.32278651]
[1764474258249,0.71,136.6,136.55,10.56319802]
[1764474258448,3.95447505,136.6,136.55,10.56319802]
[1764474258760,3.24447505,136.59,136.55,3.24]
[1764474259058,3.95447505,136.59,136.55,10.56331619]
[1764474259233,0.71,136.58,136.55,10.56331619]
[1764474259434,0.71,136.58,136.55,7.32331619]
[1764474259962,3.24447505,136.57,136.53,3.24]
[1764474260364,0.71,136.56,136.53,3.24]
[1764474260739,0.71,136.56,136.53,7.3240547]
[1764474261953,0.71,136.56,136.52,10.56940912]
[1764474262656,0.71,136.56,136.53,3.24447505]
[1764474262857,0.71,136.56,136.52,10.56940912]
[1764474263358,0.71,136.56,136.53,8.80994492]
[1764474263549,0.71,136.58,136.53,12.05441997]
[1764474263951,3.95447505,136.58,136.53,12.05441997]
[1764474264144,3.95447505,136.58,136.52,25.63726925]
[1764474264145,3.24447505,136.57,136.52,25.63726925]
[1764474264346,3.24447505,136.56,136.52,7.32493407]
[1764474264664,0.71,136.56,136.52,7.32493407]
[1764474264843,0.71,136.55,136.52,7.32493407]
[1764474266148,0.71,136.55,136.52,19.37935404]
[1764474266549,0.71,136.55,136.52,16.13487899]
[1764474267563,11.25629508,136.58,136.52,19.37935404]
[1764474267865,11.25629508,136.58,136.52,22.61935404]
[1764474267866,0.69,136.57,136.52,22.61935404]
[1764474268764,3.93447505,136.57,136.52,19.37487899]
[1764474269146,0.69,136.56,136.52,22.61935404]
[1764474269546,0.69,136.56,136.52,19.37487899]
[1764474271442,0.69,136.56,136.52,37.68721417]
[1764474276152,0.69,136.56,136.52,43.63932151]
[1764474277151,0.69,136.56,136.52,46.88379656]
[1764474277351,0.69,136.56,136.52,25.32698633]
[1764474277558,0.69,136.56,136.52,19.37487899]
[1764474277759,0.69,136.56,136.52,22.61935404]
[1764474279175,0.69,136.56,136.52,19.37935404]
[1764474279478,0.69,136.56,136.53,10.56393528]
[1764474281351,0.69,136.56,136.53,7.32393528]
[1764474281562,0.69,136.56,136.53,10.56393528]
[1764474283250,0.69,136.56,136.53,13.80841033]
[1764474283455,0.69,136.56,136.53,10.56393528]
[1764474290188,0.69,136.56,136.53,13.80841033]
[1764474290686,0.69,136.56,136.53,10.56393528]
[1764474292787,0.69,136.56,136.53,13.80841033]
[1764474293772,0.69,136.56,136.53,10.56393528]
[1764474296372,34.60981726,136.61,136.54,8.80994492]
[1764474296691,0.65,136.58,136.56,2.07803967]
[1764474297184,7.3202437,136.61,136.57,14.12798459]
[1764474297185,0.65,136.61,136.57,14.12798459]
[1764474297389,0.65,136.62,136.6,2.07803967]
[1764474297563,0.65,136.64,136.62,8.80994492]
[1764474297766,2.07803967,136.67,136.62,10.88798459]
[1764474297992,2.72803967,136.66,136.61,5.31803967]
[1764474298465,2.72803967,136.66,136.61,12.63765271]
[1764474298466,0.65,136.65,136.61,12.63765271]
[1764474298669,2.72803967,136.65,136.61,12.63765271]
[1764474298869,0.65,136.65,136.61,12.63765271]
[1764474299175,0.65,136.64,136.61,12.63765271]
[1764474300689,0.65,136.64,136.61,10.55961304]
[1764474300869,0.65,136.64,136.62,2.07803967]
[1764474302573,0.65,136.67,136.63,9.39707648]
[1764474302780,0.65,136.66,136.63,7.31903681]
[1764474302984,0.65,136.66,136.65,2.07803967]
[1764474304186,0.65,136.66,136.61,3.24]
[1764474304187,0.65,136.66,136.59,8.80994492]
[1764474304376,7.96763434,136.66,136.6,7.32064421]
[1764474304578,2.07803967,136.65,136.6,9.39868388]
[1764474304792,2.72803967,136.65,136.6,9.39868388]
[1764474304971,0.65,136.64,136.6,9.39868388]
[1764474305172,0.65,136.64,136.59,7.32101456]
[1764474305372,0.65,136.64,136.59,9.39905423]
[1764474305983,0.65,136.64,136.61,2.07803967]
[1764474306773,0.65,136.64,136.62,2.07803967]
[1764474309677,0.65,136.64,136.61,9.39781622]
[1764474309881,0.65,136.64,136.61,7.31977655]
[1764474310077,0.65,136.64,136.61,9.39781622]
[1764474310792,0.65,136.64,136.61,7.31977655]
[1764474311097,0.65,136.64,136.6,2.07803967]
[1764474311693,0.65,136.64,136.59,7.32068582]
[1764474311893,0.65,136.64,136.6,2.07803967]
[1764474312094,0.65,136.64,136.59,9.39872549]
[1764474312694,0.65,136.64,136.6,9.39835987]
[1764474312899,7.96873742,136.64,136.59,7.32107143]
[1764474313098,7.96873742,136.64,136.59,9.3991111]
[1764474313283,0.65,136.63,136.59,9.3991111]
[1764474313781,0.65,136.63,136.58,21.5438605]
[1764474313782,0.65,136.63,136.58,12.63966958]
[1764474314096,2.72803967,136.63,136.58,2.07803967]
[1764474314299,0.65,136.63,136.58,2.07803967]
[1764474314498,0.65,136.62,136.58,2.07803967]
[1764474315403,0.65,136.62,136.57,7.32209897]
[1764474315404,0.65,136.62,136.59,2.07803967]
[1764474315705,0.65,136.62,136.58,2.07803967]
[1764474316199,0.65,136.62,136.57,7.32209897]
[1764474316200,0.65,136.62,136.59,2.07803967]
[1764474316505,0.65,136.62,136.6,2.07803967]
[1764474316797,0.65,136.62,136.59,2.07803967]
[1764474321900,0.65,136.62,136.58,2.07803967]
[1764474322094,7.31903849,136.63,136.59,2.07803967]
[1764474322287,0.65,136.63,136.6,2.07803967]
[1764474322686,0.65,136.63,136.58,8.80994492]
[1764474323413,0.65,136.63,136.6,2.07803967]
[1764474326814,0.7,136.65,136.62,2.07803967]
[1764474327013,0.7,136.64,136.62,2.07803967]
[1764474327393,0.7,136.64,136.61,7.32010833]
[1764474327717,0.7,136.64,136.61,9.398148]
[1764474328016,0.7,136.64,136.6,7.32064421]
[1764474328211,0.7,136.64,136.61,2.07803967]
[1764474329320,0.7,136.64,136.62,7.31957253]
[1764474331222,0.7,136.64,136.61,9.39799644]
[1764474332007,0.7,136.64,136.62,2.07803967]
[1764474333711,0.66,136.65,136.63,7.31903681]
[1764474334535,0.66,136.67,136.64,2.07803967]
[1764474334717,0.66,136.67,136.65,2.07803967]
[1764474335096,0.66,136.67,136.64,2.07803967]
[1764474336025,0.66,136.67,136.65,7.3179656]
[1764474338845,0.66,136.67,136.64,7.31850117]
[1764474339024,2.73803967,136.67,136.63,7.31900132]
[1764474339227,2.07803967,136.66,136.62,7.31942969]
[1764474339426,2.07803967,136.65,136.6,5.31803967]
[1764474339605,2.73803967,136.65,136.6,5.31803967]
[1764474339809,0.66,136.64,136.6,5.31803967]
[1764474340313,0.66,136.64,136.6,12.63861467]
[1764474342199,0.66,136.64,136.62,2.07803967]
[1764474342607,0.66,136.64,136.61,10.88798459]
[1764474343927,0.66,136.64,136.62,7.31957253]
[1764474344926,0.66,136.65,136.62,7.31957253]
[1764474345704,2.73803967,136.65,136.62,7.31957253]
[1764474346205,0.66,136.64,136.62,7.31957253]
[1764474346531,0.66,136.64,136.61,7.31993015]
[1764474350229,0.66,136.64,136.61,9.39796982]
[1764474351511,0.66,136.64,136.61,7.31993015]
[1764474355621,0.66,136.64,136.62,2.07803967]
[1764474355826,0.69,136.65,136.62,2.07803967]
[1764474356620,0.69,136.65,136.63,7.31903681]
[1764474359225,0.69,136.65,136.61,28.8630858]
[1764474360134,0.69,136.66,136.63,3.24270663]
[1764474360334,0.69,136.66,136.62,3.24270663]
[1764474360629,0.69,136.66,136.61,25.62037917]
[1764474360833,3.93270663,136.66,136.61,25.62037917]
[1764474361134,0.69,136.66,136.62,3.24270663]
[1764474361432,0.69,136.65,136.62,10.56178502]
[1764474361734,0.69,136.65,136.62,28.86071636]
[1764474362236,0.69,136.65,136.62,25.61800973]
[1764474363722,3.93270663,136.65,136.62,7.31907839]
[1764474364120,0.69,136.64,136.6,10.56033408]
[1764474364509,3.93270663,136.64,136.6,10.56033408]
[1764474364714,0.69,136.64,136.6,10.56033408]
[1764474364933,3.24270663,136.62,136.58,7.32149179]
[1764474365315,0.69,136.61,136.58,7.32149179]
[1764474365918,3.93270663,136.61,136.56,6.48270663]
[1764474366214,3.93270663,136.61,136.57,3.24270663]
[1764474366215,0.69,136.61,136.57,3.24270663]
[1764474366419,10.56267766,136.62,136.57,3.24270663]